Cogmind - Beta 16 @@@ ROGUE MODE // 2025.11.10 @ 21:03:59 Player: Spoodle Result: Destroyed by D-53 Grenadier with Mini Grenade Launcher Performance ------------- Evolutions (0) 0 Regions Visited (2) 400 Robots Destroyed (26) 130 Value Destroyed (486) 486 Prototype IDs (0) 0 Alien Tech Used (0) 0 Bonus (0) 0 TOTAL SCORE: 1016 Bonus ------- None Cogmind --------- Core Integrity 0/250 Matter 300/300 Energy 246/250 System Corruption 0% Temperature Cool (2) Movement Walking (120) Location -10/Mines Parts ------- > --- POWER (1) -------- Ion Engine > --- PROPULSION (2) --- Aluminum Leg Aluminum Leg > --- UTILITY (2) ------ Heat Sink Medium Storage Unit > --- WEAPON (2) ------- Small Laser Assault Rifle > --- INVENTORY (10) --- Light Treads Light Treads Aluminum Leg Improved Heat Sink Seismic Detector Small Laser Small Laser Grenade Launcher Rocket Launcher Mining Laser Peak State ------------ > --- POWER ------------ Ion Engine > --- PROPULSION ------- Aluminum Leg Aluminum Leg > --- UTILITY ---------- Medium Storage Unit Seismic Detector > --- WEAPON ----------- Small Laser Small Laser > --- INVENTORY -------- Light Ion Engine Light Treads Light Treads Heat Sink Heat Sink Small Laser Small Laser Small Laser Grenade Launcher Mining Laser [Rating: 8] Favorites ----------- Power Ion Engine Engine Ion Engine Propulsion Aluminum Leg Treads Light Treads Leg Aluminum Leg Utility Medium Storage Unit Device Seismic Detector Storage Medium Storage Unit Weapon Small Laser Energy Gun Small Laser Ballistic Gun Assault Rifle Launcher Grenade Launcher Build | -11 -10 -10 ------- Run | Yrd Mat Min Slots Evolved . | . . . Power . | . . . Propulsion . | . . . Utility . | . . . Weapon . | . . . Parts Attached 26 | 7 14 5 Power 4 | 1 2 1 Engine 4 | 1 2 1 Core . | . . . Reactor . | . . . Propulsion 7 | 2 3 2 Treads 1 | . 1 . Leg 6 | 2 2 2 Wheel . | . . . Hover . | . . . Flight . | . . . Utility 8 | 2 5 1 Device 6 | 1 4 1 Storage 2 | 1 1 . Processor . | . . . Hackware . | . . . Protection . | . . . Artifact . | . . . Weapon 7 | 2 4 1 Energy Gun 5 | 2 3 . Energy Cannon . | . . . Ballistic Gun 1 | . . 1 Ballistic Cannon . | . . . Launcher 1 | . 1 . Special Weapon . | . . . Impact Weapon . | . . . Slashing Weapon . | . . . Piercing Weapon . | . . . Special Melee Weapon . | . . . Unidentified Prototypes . | . . . Parts Lost 8 | . 6 2 Power 2 | . 1 1 Propulsion 1 | . 1 . Utility 2 | . 2 . Weapon 3 | . 2 1 Highest Loss Streak 5 | . 5 2 To Critical Strikes . | . . . Average Backups 8 | 4 8 9 Power . | . 1 . Propulsion 2 | 2 1 2 Utility 1 | . 1 2 Weapon 3 | 1 3 4 Tool/Special . | . . . Unused Backups 10 | . 2 8 Power 2 | . . 2 Propulsion 3 | . 1 2 Utility 1 | . . 1 Weapon 4 | . 1 3 Tool/Special . | . . . Average Slot Usage (%) 97 | . 97 98 Engine 13 | . 13 12 Treads 1 | . 1 . Leg 26 | . 26 28 Device 13 | . 13 14 Storage 14 | . 14 14 Energy Gun 23 | . 26 14 Ballistic Gun 2 | . . 13 Peak Build Rating 8 | 7 8 8 Average Rating 7 | 5 7 7 On Entrance 5 | . 7 8 Avg Prop Armor Cover (%) 8 | . 8 . Naked Turns . | . . . Heaviest Build 19 | 14 18 19 Greatest Support 20 | 20 20 20 Greatest Overweight (x) 1 | . 1 . Average Overweight (x) . | . . . Largest Inventory Capacity 10 | 8 10 10 Average Capacity 9 | 7 9 10 Most Carried 10 | 7 10 10 Average Carried 8 | 4 8 9 Final Capacity 10 | 8 10 10 Final Carried 10 | 7 10 10 Class Distribution -------------------- 69% | Scavenger-Mutant 30% | Mutant Dominant Class ---------------- Scavenger-Mutant | -10/Materials Scavenger-Mutant | -10/Mines Resources | -11 -10 -10 ----------- Run | Yrd Mat Min Matter Collected 514 | 270 172 72 Remotely 30 | . 30 . Salvage Created 859 | 140 632 87 Parts 44 | 7 29 8 Haulers Intercepted 2 | . 2 . Recyclers Shooed 1 | . 1 . Parts Field Recycled . | . . . Retrieved Matter . | . . . Parts Self-Destructed . | . . . Prevented . | . . . Parts Restored . | . . . Kills | -11 -10 -10 ------- Run | Yrd Mat Min Combat Hostiles Destroyed 15 | . 13 2 Guns 11 | . 9 2 AOE 4 | . 4 . Classes Destroyed 7 | 2 5 . Builder 2 | . 2 . Tunneler 4 | 4 . . Hauler 2 | . 2 . Recycler 2 | 1 1 . Watcher 1 | . 1 . Swarmer 5 | . 5 . Grunt 10 | . 8 2 Best Kill Streak 4 | 4 4 2 Combat Bots Only 3 | . 3 2 Max Kills in Single Turn 2 | 1 2 1 Gunslinging . | . . . Exploded 2 | . 2 . Melee . | . . . Uniques/NPCs Destroyed . | . . . Combat | -11 -10 -10 -------- Run | Yrd Mat Min Hostile Shots Fired 125 | . 98 27 Missed 25 | . 21 4 Hits 100 | . 77 23 Projectile 100 | . 77 23 AOE 3 | . . 3 Critical Strikes 2 | . . 2 Damage Taken 1229 | . 818 411 Core 273 | . 94 179 Absorbed by Shields . | . . . Core Remaining (%) 100 | 100 . . Volleys Fired 105 | 23 71 11 Largest 2 | 1 2 2 Hottest 80 | 40 80 80 Shots Fired 165 | 23 121 21 Gun 164 | 23 120 21 Cannon . | . . . Launcher 1 | . 1 . Special . | . . . Kinetic 9 | . . 9 Thermal 119 | 23 84 12 Explosive 1 | . 1 . Electromagnetic 36 | . 36 . Robot Hit Streak 12 | 6 12 7 Robot Miss Streak 4 | 3 4 3 Penetration Max . | . . . Secondary Targets . | . . . Shots Hit Robots 107 | 13 81 13 Core Hits 42 | 6 31 5 Critical Kills . | . . . Critical Parts Destroyed . | . . . Critical Strikes . | . . . Melee Attacks . | . . . Impact . | . . . Slashing . | . . . Piercing . | . . . Sneak Attacks . | . . . Combat Hostiles . | . . . Follow-up Attacks . | . . . Damage Inflicted 1619 | 164 1282 173 Guns 1275 | 164 958 153 Cannons . | . . . Explosions 313 | . 313 . Melee . | . . . Ramming 31 | . 11 20 Kinetic 66 | . . 66 Thermal 1116 | 164 865 87 Explosive 123 | . 123 . Electromagnetic 283 | . 283 . Impact . | . . . Slashing . | . . . Piercing . | . . . Highest Corruption . | . . . Average Corruption . | . . . Corruption Purged . | . . . Corruption Blocked . | . . . Overload Shots . | . . . Overflow Damage 8 | . 8 . Projectiles . | . . . Explosions 8 | . 8 . Melee . | . . . Knockbacks . | . . . Impact . | . . . Kinetic . | . . . Secondary . | . . . Self-Inflicted Damage . | . . . Shots . | . . . Rammed . | . . . Targets Rammed 7 | . 3 4 Kicked 7 | . 3 4 Crushed . | . . . Highest Temperature 222 | . 222 34 Average Temperature 83 | . 86 17 Received Heat Transfer 546 | . 348 198 Siege Activations . | . . . Martial Activations . | . . . Shielding Activations . | . . . Robots Disrupted . | . . . Combat Hostiles . | . . . Robots Corrupted . | . . . Combat Hostiles . | . . . Parts Fried 1 | . 1 . Impact Corruptions . | . . . Robots Melted . | . . . Combat Hostiles . | . . . Parts Melted . | . . . Heat Transferred 2325 | 375 1750 200 Parts Sabotaged . | . . . Parts Stolen . | . . . Parts Stripped . | . . . Power Chain Reactions 2 | . 2 . Alert | -11 -10 -10 ------- Run | Yrd Mat Min Maximum Alert Level . | . . . Low Security (%) 100 | 100 100 100 Level 1 . | . . . Level 2 . | . . . Level 3 . | . . . Level 4 . | . . . Level 5 . | . . . High Security . | . . . Max Security . | . . . Peak Influence 171 | 15 171 62 Initial 42 | . . 42 Average 90 | 2 124 19 Influence Increases 624 | 25 549 50 Destroy 0b10 Robot/C 300 | . 260 40 Destroy 0b10 Robot/NC 55 | 25 30 . Destroy Leader 86 | . 76 10 Successful Hack 33 | . 33 . Select Force Hacks 60 | . 60 . Destroy Structure 15 | . 15 . Lose Combat Pursuer 75 | . 75 . Influence Decreases 624 | 25 440 159 Entered New Map 67 | . . 67 Time Decay 477 | 25 380 72 Lost Part 80 | . 60 20 Squads Dispatched 4 | . 4 . Investigation 4 | . 4 . Extermination . | . . . Reinforcement . | . . . Assault . | . . . Garrison . | . . . Intercept . | . . . Searches Triggered . | . . . Construction Impeded . | . . . Haulers Reinforced . | . . . Active Scanning Responses . | . . . Cargo Convoy Interrupts . | . . . Stealth | -11 -10 -10 --------- Run | Yrd Mat Min Distress Signals 2 | . 2 . Communications Jammed . | . . . Distress Signals . | . . . Times Spotted 30 | . 25 5 Peak Tracking Total 5 | . 5 2 Tactical Retreats 2 | . 2 . Traps | -11 -10 -10 ------- Run | Yrd Mat Min Traps Triggered 3 | . 3 . Indirectly . | . . . Trap Hack Attempts . | . . . Triggered . | . . . Disarmed . | . . . Reprogrammed . | . . . Reused . | . . . Traps Extracted . | . . . Installed . | . . . Triggered . | . . . Machines | -11 -10 -10 ---------- Run | Yrd Mat Min Machines Disabled . | . . . Max in Single Turn . | . . . Machines Repaired . | . . . Machines Dismantled . | . . . Machines Sabotaged . | . . . Overloaded Fab Kills . | . . . Hacking | -11 -10 -10 --------- Run | Yrd Mat Min Machines Accessed 7 | . 7 . Terminals 5 | . 5 . Fabricators . | . . . Repair Stations . | . . . Recycling Units 2 | . 2 . Scanalyzers . | . . . Garrison Access . | . . . Total Hacks 24 | . 24 . Successful 16 | . 16 . Failed 7 | . 7 . Catastrophic 2 | . 2 . Database Lockouts 1 | . 1 . Manual 23 | . 23 . Terminals 22 | . 22 . Fabricators . | . . . Repair Stations . | . . . Recycling Units 2 | . 2 . Scanalyzers . | . . . Garrison Access . | . . . Terminal Hacks 5 | . 5 . Part Schematic 1 | . 1 . Robot Analysis 2 | . 2 . Terminal Index 1 | . 1 . Locate Traps 1 | . 1 . Fabricator Hacks . | . . . Repair Station Hacks . | . . . Recycling Unit Hacks . | . . . Scanalyzer . | . . . Garrison Access Hacks . | . . . Unauthorized Hacks 11 | . 11 . Terminals 9 | . 9 . Track 1 | . 1 . Botnet 2 | . 2 . Operators 1 | . 1 . Skim 5 | . 5 . Fabricators . | . . . Repair Stations . | . . . Recycling Units 2 | . 2 . Tunnel 2 | . 2 . Scanalyzers . | . . . Garrison Access . | . . . Data Cores Recovered . | . . . Used . | . . . Hacking Detections 5 | . 5 . Full Trace Events . | . . . Feedback Events . | . . . Feedback Blocked . | . . . Robot Schematics Acquired . | . . . Robots Built . | . . . Authchips . | . . . Time . | . . . Total Robot Build Rating . | . . . Part Schematics Acquired 1 | . 1 . Parts Built . | . . . Authchips . | . . . Time . | . . . Total Part Build Rating . | . . . Part Studies Acquired . | . . . Parts Repaired . | . . . Time . | . . . Parts Recycled . | . . . Recycled Matter . | . . . Retrieved Matter . | . . . Retrieved Components . | . . . Parts Scanalyzed . | . . . Part Schematics Acquired . | . . . Parts Damaged . | . . . Bothacking | -11 -10 -10 ------------ Run | Yrd Mat Min Used RIF Installer . | . . . Robots Hacked . | . . . Non-combat . | . . . Combat . | . . . Robot Hacks Applied . | . . . Relay Couplers Released . | . . . Fabnet Peak Effective % . | . . . Robots Rewired . | . . . Allies Hacked . | . . . Hacks Repelled . | . . . Allies | -11 -10 -10 -------- Run | Yrd Mat Min Total Allies . | . . . Largest Group . | . . . Highest-Rated Group . | . . . Highest-Rated Ally . | . . . Total Orders . | . . . Ally Attacks . | . . . Total Damage . | . . . Kills . | . . . Allies Corrupted . | . . . Allies Melted . | . . . Intel | -11 -10 -10 ------- Run | Yrd Mat Min Active Infowar (turns) 641 | 69 572 . Seismic 641 | 69 572 . Robot Analysis Total 2 | . 2 . Derelict Logs Recovered 1 | . . 1 Drone Launches . | . . . Drone Recoveries . | . . . Exploration | -11 -10 -10 ------------- Run | Yrd Mat Min Turns Passed 1285 | 145 896 244 Spaces Moved 763 | 74 525 164 Core 13 | 13 . . Treads 40 | . 40 . Legs 710 | 61 485 164 Wheels . | . . . Hover . | . . . Flight . | . . . Fastest Speed 50 | 50 120 120 Average Speed 121 | 107 123 120 Slowest Speed 190 | 120 190 120 Overloaded Moves . | . . . Propulsion Burnouts . | . . . Robots Hopped . | . . . Potential Cave-ins . | . . . Cave-ins Triggered . | . . . Exploration Rate (%) 39 | 5 78 34 Regions Visited 2 Branch Regions 1 Pre-discovered Areas 4 | . 3 1 Known Exits Taken . | . . . Unknown Exits Taken 2 | 1 1 . Scrap Searched . | . . . Spaces Dug . | . . . Terrain Destroyed 14 | . 14 . Melee . | . . . Projectile . | . . . AOE 14 | . 14 . Terrain Rammed . | . . . Walls Destroyed . | . . . Machines Disabled . | . . . Actions | -11 -10 -10 --------- Run | Yrd Mat Min Total 963 | 115 653 195 Wait 22 | . 21 1 Move 761 | 73 524 164 Hop . | . . . Pick Up 26 | 12 10 4 Fast Attach 6 | 2 3 1 Attach 10 | 5 4 1 Detach . | . . . Swap 13 | . 10 3 Drop 13 | . 7 6 Fire 105 | 23 71 11 Melee . | . . . Ram . | . . . Kick 7 | . 3 4 Crush . | . . . Escape Stasis . | . . . Rewire . | . . . Trap . | . . . Miscellaneous . | . . . Route ------- -11/Scrapyard -10/Materials (discovered 5 exits: *Mat x3 / [*Min] / Sub) -10/Mines (discovered 2 exits: *Mat x2) History --------- Turn | Location | Event 6 | -11/Scrapyard | Discovered new exit (range 15) 146 | -11/Scrapyard | Entered Materials 310 | -10/Materials | Build established: Mutant 338 | -10/Materials | Lost 5 parts (1n2u2w) 427 | -10/Materials | Discovered new exit (range 15) 546 | -10/Materials | Discovered new exit (range 4) 692 | -10/Materials | Discovered new exit (range 3) 706 | -10/Materials | Build established: Scavenger-Mutant 706 | -10/Materials | Central database locked down 752 | -10/Materials | Discovered new exit (range 15) 761 | -10/Materials | Learned 2 Storage zone layouts 805 | -10/Materials | Learned Storage emergency access door positions 865 | -10/Materials | Identified exit to Subcaves 865 | -10/Materials | Learned location of 1 exit from Materials 880 | -10/Materials | Learned location of Recycling (-7) 887 | -10/Materials | Learned Storage trap positions 888 | -10/Materials | Learned 4 Recycling zone layouts 895 | -10/Materials | Learned location of 2 exits from Mines 941 | -10/Materials | Learned location of 2 exits from Materials 1042 | -10/Materials | Entered Mines 1043 | -10/Mines | Identified exit to Materials 1049 | -10/Mines | Core integrity fell below 50% 1130 | -10/Mines | Received a Rocket Launcher from a helpful Derelict 1177 | -10/Mines | Learned location of Zion (-6) 1267 | -10/Mines | Assembled infested the area 1272 | -10/Mines | Assisted by a Guerilla fighting off Assembled 1286 | -10/Mines | Core integrity fell below 20% 1286 | -10/Mines | Destroyed by D-53 Grenadier with Mini Grenade Launcher Last Messages --------------- 01128_ UL-HQ9(g): "Need to get rid of a swarm? Done. Need a big hole in the wall? Done." 01129_ UL-HQ9(g): "Need a small hole in the wall? Leave that to the mining laser wimps, I say!" 01130_ UL-HQ9(g): "Would you like a rocket launcher? I know I would if I were you, so I'm going to lend you mine." 01130_ UL-HQ9(g) slips back into the shadows. 01131_ Dropped Lgt. Nuclear Core. 01132_ Acquired Rocket Launcher. 01156_ Kicked R-06 Scavenger. 01162_ Kicked T-07 Excavator. 01177_ Acquired derelict log, extracted data. World map updated: -6/Zion. 01178_ Kicked T-07 Excavator. 01182_ T-07 Excavator is excavating. 01231_ Kicked T-07 Excavator. 01267_ ALERT: Infestation in the mines, dispatching Demolisher response squad. 01285_ C-45 Heavy ARC bursts open, deploying its payload. 01285_ D-53 Grenadier unfolds itself. Map ----- +----------------------------------------------------+ | | | | | | | | | ?????????????????????????????????????????????????? | | ?????????????????????????????????????????????????? | | ?????????????????????????????????????????????????? | | ?????????????????????????????????????????????????? | | ?????????????????????????????????????????????????? | | ?????????????????????????????????????????????????? | | ??????????????????????????????????######?????????? | | ????????????????????????????????### ########### | | ????????????????????????????##### % | | ???????????????????????????? # < ########## | | ???????????????????????##### ## #????????# | | ??????????????????????## ## ##????????# | | ?????????????????????## ?# """ ##?????????# | | ?????????????????????# ### """ ##??????????# | | ????????????????????## """ #???????????# | | ????????????????????# ##???????????# | | ????????????????????# ###### ##????????????# | | ????????????????????## ##????#####?????????????# | | ?????????????????????# #???????????????????????? | | ?????????????????????# ###?????????????????????? | | ?????????????????????# #####?????????????????? | | ?????????????????????## @d #?????????????????? | | ??????????????????????# d% #?????????????????? | | ??????????????????????## ##?????????????????? | | ??????????????????????# #????????????????? | | ???????????????? #????????????????? | | ????????????? #????????????????? | | ????????????? #### ###### ##????????????????? | | ??????????????##?????##??????###?????????????????? | | ?????????????????????????????????????????????????? | | ?????????????????????????????????????????????????? | | ?????????????????????????????????????????????????? | | ?????????????????????????????????????????????????? | | ?????????????????????????????????????????????????? | | ?????????????????????????????????????????????????? | | ?????????????????????????????????????????????????? | | ?????????????????????????????????????????????????? | | ?????????????????????????????????????????????????? | | ?????????????????????????????????????????????????? | | ?????????????????????????????????????????????????? | | ?????????????????????????????????????????????????? | | ?????????????????????????????????????????????????? | | ?????????????????????????????????????????????????? | | ?????????????????????????????????????????????????? | | ?????????????????????????????????????????????????? | | ?????????????????????????????????????????????????? | +----------------------------------------------------+ Best States ------------- Heat Dissipation 35 Energy Generation 10 Energy Capacity 250 Matter Stores 300 Matter Capacity 300 Sight Range 16 Terrain Scan Density 10 Evasion (%) 55 Recoil Reduction 1 Item Schematics ----------------- Huge Storage Unit | -10/Materials | Hacked Robot Schematics ------------------ None Fabricated ------------ Nothing Repaired ---------- Nothing Studied --------- None Alien Tech Used ----------------- None Achievements -------------- None Challenges ------------ None Game ------ Seed StealthAluminumBlaster Manual? 0 Play Time 00:09:44 Cumulative 587.6 hours Start 2025.11.10 @ 20:55:31 End 2025.11.10 @ 21:03:59 Sessions 1 Manual Loads 0 Difficulty Rogue Special Mode None Game No. 224 Rogue 224 Adventurer 0 Explorer 0 Win Type - Total 23 Types 13/1/5/2/0/1/0/1/0/0 Lore% 92 Gallery% 84 Achievement% 64 Wizard Run 0 Options --------- Layout 0 ASCII 0 Keyboard 1 Movement Numpad Keybinds 0 Fullscreen 2 Font 18/SmallcapsGlow Map View 76x50 Zoom Use 0% Tactical HUD 1 Map Filters NONE Filters NONE Steam 1 RUN: 33d9ebd0-e2d5-420a-99e3-200d7004a887